[Event "Austrian Championship Boys-U12 2024"]
[Site "Fuerstenfeld"]
[Date "2024.06.02"]
[Round "7.1"]
[White "Radnaev, Leo"]
[Black "Chen, Chicheng Leon"]
[Result "1/2-1/2"]
[ECO "B45"]
[WhiteElo "1879"]
[BlackElo "1827"]
[Annotator "NA RC"]
[PlyCount "134"]
[EventDate "2024.05.28"]
[EventType "swiss"]
[EventCountry "AUT"]
[SourceTitle "playchess.com"]
[Source "ChessBase"]
[SourceQuality "1"]
[TimeControl "5400+30"]

1. e4 {[%emt 0:00:03]} c5 {[%emt 0:00:11]} 2. Nf3 {[%emt 0:00:06]} e6 {[%emt 0:00:04]} 3. d4 {[%emt 0:00:04]} cxd4 {[%emt 0:00:04]} 4. Nxd4 {[%emt 0:00:05]} Nf6 {[%emt 0:00:04]} 5. Nc3 {[%emt 0:00:10]} Nc6 {[%emt 0:00:10]} 6. Nxc6 {[%emt 0:00:12]} bxc6 {[%emt 0:00:05]} 7. e5 {[%emt 0:00:09]} Nd5 {[%emt 0:00:04]} 8. Ne4 {[%emt 0:00:04]} Qc7 {[%emt 0:00:07]} 9. f4 {[%emt 0:00:04]} Qb6 {[%emt 0:00:06]} 10. c4 {[%emt 0:00:11]} Bb4+ {[%emt 0:00:21]} 11. Ke2 {[%emt 0:00:09]} f5 {[%emt 0:00:07]} 12. Nf2 {[%emt 0:00:08]} Ba6 {[%emt 0:00:23]} 13. Kf3 {[%emt 0:00:19]} Ne7 {[%emt 0:00:08]} 14. Be3 {[%emt 0:00:06]} Bc5 {[%emt 0:00:19]} 15. Bxc5 {[%emt 0:00:10]} Qxc5 {[%emt 0:00:22]} 16. Qd6 {[%emt 0:00:11]} Qb6 {[%emt 0:00:17]} 17. Be2 {[%emt 0:00:24]} Qxb2 {[%emt 0:08:11]} 18. Nd3 {[%emt 0:01:59]} Qc3 {[%emt 0:07:23]} 19. Rhc1 {[%emt 1:35:26]} Qa5 {[%emt 0:03:07]} 20. Nc5 {[%emt 0:00:00]} Kf7 {[%emt 0:02:11]} 21. Nb3 {[%emt 0:00:00]} Qb6 {[%emt 0:03:29]} 22. Rab1 {[%emt 0:00:00]} Rhd8 {[%emt 0:05:23]} 23. a4 {[%emt 0:00:00]} Nc8 {[%emt 0:05:12]} 24. Qa3 {[%emt 0:00:00]} d6 {[%emt 0:02:03]} 25. a5 {[%emt 0:00:00]} Qc7 {[%emt 0:00:24]} 26. exd6 {[%emt 0:00:00]} Nxd6 {[%emt 0:06:02]} 27. Nc5 {[%emt 0:00:00]} Bc8 {[%emt 0:00:25]} 28. Rd1 {[%emt 0:00:00]} Ne4 {[%emt 0:05:03]} 29. Rxd8 {[%emt 0:00:00]} Qxd8 {[%emt 0:00:18]} 30. Nxe4 {[%emt 0:00:00]} fxe4+ {[%emt 0:00:07]} 31. Kxe4 {[%emt 0:00:00]} Qf6 {[%emt 0:03:51]} 32. Ke3 {[%emt 0:00:00]} e5 {[%emt 0:09:29]} 33. Rf1 {[%emt 0:00:08]} Bf5 {[%emt 0:02:41]} 34. Qc5 {[%emt 0:06:28]} Re8 {[%emt 0:00:45]} 35. Kf2 {[%emt 0:00:51]} exf4 {[%emt 0:00:59]} 36. Bf3 {[%emt 0:00:09]} Bd3 {[%emt 0:05:20]} 37. Rd1 {[%emt 0:00:51]} Qe6 {[%emt 0:00:40]} 38. Qxa7+ {[%emt 0:00:24]} Kg8 {[%emt 0:01:51]} 39. Qd4 {[%emt 0:00:23]} Bxc4 {[%emt 0:07:17]} 40. Qxf4 {[%emt 0:00:40]} Rf8 {[%emt 0:01:33]} 41. Qd6 {[%emt 0:00:26]} Qe2+ {[%emt 0:01:31]} 42. Kg3 {[%emt 0:00:08]} Qe3 {[%emt 0:00:57]} 43. Qd4 {[%emt 0:00:24]} Qb3 {[%emt 0:03:10]} 44. Re1 {[%emt 0:01:04]} Qb5 {[%emt 0:03:33]} 45. h4 {[%emt 0:00:25]} Bf7 {[%emt 0:02:41]} 46. Kh2 {[%emt 0:00:37]} Qxa5 {[%emt 0:01:10]} 47. Rc1 {[%emt 0:00:26]} Bd5 {[%emt 0:01:27]} 48. Bxd5+ {[%emt 0:00:33]} Qxd5 {[%emt 0:00:17]} 49. Qe3 {[%emt 0:00:26]} h6 {[%emt 0:01:47]} 50. Rc5 {[%emt 0:00:15]} Qd6+ {[%emt 0:01:53]} 51. g3 {[%emt 0:00:43]} Rb8 {[%emt 0:01:11]} 52. Qc3 {[%emt 0:00:35]} Re8 {[%emt 0:03:40]} 53. Qc4+ {[%emt 0:00:18]} Re6 {[%emt 0:02:14]} 54. Rf5 {[%emt 0:00:42]} Kh7 {[%emt 0:00:43]} 55. Qc2 {[%emt 0:00:20]} Rg6 {[%emt 0:00:10]} 56. Rf3 {[%emt 0:00:39]} Qd5 {[%emt 0:02:40]} 57. Re3 {[%emt 0:00:30]} c5 {[%emt 0:02:05]} 58. Rc3 {[%emt 0:00:31]} Qe5 {[%emt 0:00:25]} 59. Qd3 {[%emt 0:00:22]} Qh5 {[%emt 0:00:54]} 60. Rc4 {[%emt 0:00:33]} Qe5 {[%emt 0:00:47]} 61. Kh3 {[%emt 0:00:36]} Qe6+ {[%emt 0:00:21]} 62. g4 {[%emt 0:00:13]} h5 {[%emt 0:00:08]} 63. Kg2 {[%emt 0:00:47]} Qc6+ {[%emt 0:00:42]} 64. Kg3 {[%emt 0:00:23]} Qd6+ {[%emt 0:00:16]} 65. Qxd6 {[%emt 0:00:20]} Rxd6 {[%emt 0:00:03]} 66. Rxc5 {[%emt 0:00:40]} Rd3+ {[%emt 0:00:18]} 67. Kf4 {[%emt 0:00:37]} Rd4+ {[%emt 0:02:21]} 1/2-1/2

[Event "Austrian Championship Boys-U12 2024"]
[Site "Fuerstenfeld"]
[Date "2024.06.02"]
[Round "7.2"]
[White "Seikmann, Jim"]
[Black "Pleimer, Noah"]
[Result "0-1"]
[ECO "A24"]
[WhiteElo "1612"]
[BlackElo "1836"]
[Annotator "NA RC"]
[PlyCount "112"]
[EventDate "2024.05.28"]
[EventType "swiss"]
[EventCountry "AUT"]
[SourceTitle "playchess.com"]
[Source "ChessBase"]
[SourceQuality "1"]
[TimeControl "5400+30"]

1. c4 {[%emt 0:00:03]} e5 {[%emt 0:00:04]} 2. g3 {[%emt 0:00:07]} Nf6 {[%emt 0:00:11]} 3. Bg2 {[%emt 0:00:41]} g6 {[%emt 0:00:41]} 4. Nc3 {[%emt 0:01:07]} Bg7 {[%emt 0:00:45]} 5. e3 {[%emt 0:02:35]} O-O {[%emt 0:02:48]} 6. Nge2 {[%emt 0:00:39]} d6 {[%emt 0:02:23]} 7. O-O {[%emt 0:01:20]} c6 {[%emt 0:01:12]} 8. b3 {[%emt 0:03:51]} a5 {[%emt 0:02:35]} 9. Bb2 {[%emt 0:03:00]} Qc7 {[%emt 0:03:02]} 10. d4 {[%emt 0:03:34]} Na6 {[%emt 0:08:22]} 11. Re1 {[%emt 0:04:00]} exd4 {[%emt 0:04:44]} 12. Nxd4 {[%emt 0:05:53]} Nc5 {[%emt 0:02:06]} 13. Qd2 {[%emt 0:01:51]} Re8 {[%emt 0:02:39]} 14. Bf3 {[%emt 0:04:34]} Ng4 {[%emt 0:04:41]} 15. Rad1 {[%emt 0:05:42]} Ne5 {[%emt 0:01:42]} 16. Be2 {[%emt 0:02:02]} h5 {[%emt 0:05:21]} 17. Nf3 {[%emt 0:02:36]} Nxf3+ {[%emt 0:02:39]} 18. Bxf3 {[%emt 0:00:03]} Be5 {[%emt 0:00:21]} 19. Ne2 {[%emt 0:05:54]} Bf5 {[%emt 0:03:55]} 20. Nf4 {[%emt 0:10:42]} Ne4 {[%emt 0:10:33]} 21. Bxe4 {[%emt 0:09:20]} Bxe4 {[%emt 0:00:07]} 22. Ne2 {[%emt 0:02:39]} Rad8 {[%emt 0:05:35]} 23. Nd4 {[%emt 0:02:14]} c5 {[%emt 0:03:41]} 24. Nb5 {[%emt 0:04:49]} Qe7 {[%emt 0:02:40]} 25. f4 {[%emt 0:04:13]} Bxb2 {[%emt 0:00:57]} 26. Qxb2 {[%emt 0:00:04]} d5 {[%emt 0:02:21]} 27. cxd5 {[%emt 0:02:58]} Rxd5 {[%emt 0:01:48]} 28. Nc3 {[%emt 0:01:23]} Rxd1 {[%emt 0:00:18]} 29. Rxd1 {[%emt 0:00:38]} Bc6 {[%emt 0:00:25]} 30. Re1 {[%emt 0:00:28]} Rd8 {[%emt 0:00:36]} 31. Kf2 {[%emt 0:00:51]} Qe6 {[%emt 0:01:32]} 32. e4 {[%emt 0:02:37]} h4 {[%emt 0:00:45]} 33. Qe2 {[%emt 0:01:51]} Qh3 {[%emt 0:00:30]} 34. Kf3 {[%emt 0:01:41]} Rd4 {[%emt 0:01:20]} 35. a3 {[%emt 0:04:28]} f5 {[%emt 0:00:50]} 36. Qc2 {[%emt 0:03:58]} b5 {[%emt 0:05:28]} 37. b4 {[%emt 0:01:17]} hxg3 {[%emt 0:00:58]} 38. hxg3 {[%emt 0:00:13]} c4 {[%emt 0:01:02]} 39. Re3 {[%emt 0:01:23]} Qf1+ {[%emt 0:00:35]} 40. Qf2 {[%emt 0:00:07]} fxe4+ {[%emt 0:00:11]} 41. Nxe4 {[%emt 0:00:29]} Bxe4+ {[%emt 0:00:06]} 42. Rxe4 {[%emt 0:00:11]} Qxf2+ {[%emt 0:00:06]} 43. Kxf2 {[%emt 0:00:01]} Rxe4 {[%emt 0:00:09]} 44. Kf3 {[%emt 0:00:09]} axb4 {[%emt 0:00:12]} 45. Kxe4 {[%emt 0:00:17]} bxa3 {[%emt 0:00:03]} 46. f5 {[%emt 0:00:07]} gxf5+ {[%emt 0:00:05]} 47. Kxf5 {[%emt 0:00:11]} a2 {[%emt 0:00:04]} 48. g4 {[%emt 0:00:03]} a1=Q {[%emt 0:21:22]} 49. g5 {[%emt 0:00:05]} c3 {[%emt 0:00:00]} 50. g6 {[%emt 0:00:06]} c2 {[%emt 0:00:00]} 51. g7 {[%emt 0:00:08]} c1=Q {[%emt 0:00:00]} 52. Ke4 {[%emt 0:00:10]} Qc4+ {[%emt 0:00:00]} 53. Kf5 {[%emt 0:00:09]} Qad4 {[%emt 0:00:00]} 54. Kg5 {[%emt 0:00:10]} Qf4+ {[%emt 0:00:00]} 55. Kh5 {[%emt 0:00:23]} Qd5+ {[%emt 0:00:00]} 56. Kg6 {[%emt 0:00:08]} Qdf7# {[%emt 0:00:00]} 0-1

[Event "Austrian Championship Boys-U12 2024"]
[Site "Fuerstenfeld"]
[Date "2024.06.02"]
[Round "7.3"]
[White "Feiertag, Niklas"]
[Black "Schernthaner, Tim"]
[Result "1-0"]
[ECO "E32"]
[WhiteElo "1577"]
[BlackElo "1538"]
[Annotator "NA RC"]
[PlyCount "83"]
[EventDate "2024.05.28"]
[EventType "swiss"]
[EventCountry "AUT"]
[SourceTitle "playchess.com"]
[Source "ChessBase"]
[SourceQuality "1"]
[TimeControl "5400+30"]

1. d4 {[%emt 0:00:10]} Nf6 {[%emt 0:00:18]} 2. c4 {[%emt 0:00:29]} e6 {[%emt 1:31:12]} 3. Nc3 {[%emt 0:00:30]} Bb4 {[%emt 0:00:00]} 4. Qc2 {[%emt 0:00:26]} O-O {[%emt 0:00:00]} 5. a3 {[%emt 0:01:09]} Bxc3+ {[%emt 0:00:00]} 6. Qxc3 {[%emt 0:00:27]} b6 {[%emt 0:00:00]} 7. Bg5 {[%emt 0:01:16]} Bb7 {[%emt 0:00:00]} 8. e3 {[%emt 0:00:28]} d5 {[%emt 0:00:00]} 9. cxd5 {[%emt 0:02:49]} Bxd5 {[%emt 0:00:00]} 10. f3 {[%emt 1:27:46]} h6 {[%emt 0:00:00]} 11. Bh4 {[%emt 0:00:00]} Bb7 {[%emt 0:00:00]} 12. Bd3 {[%emt 0:00:00]} Nbd7 {[%emt 0:00:00]} 13. e4 {[%emt 0:00:00]} Qc8 {[%emt 0:00:00]} 14. b4 {[%emt 0:00:00]} Re8 {[%emt 0:00:00]} 15. Ne2 {[%emt 0:00:00]} a6 {[%emt 0:00:00]} 16. O-O {[%emt 0:00:00]} c6 {[%emt 0:00:00]} 17. a4 {[%emt 0:00:00]} Qc7 {[%emt 0:00:00]} 18. Rac1 {[%emt 0:00:00]} Rac8 {[%emt 0:00:00]} 19. b5 {[%emt 0:00:00]} axb5 {[%emt 0:00:00]} 20. axb5 {[%emt 0:00:00]} c5 {[%emt 0:00:00]} 21. dxc5 {[%emt 0:00:00]} bxc5 {[%emt 0:00:00]} 22. Bf2 {[%emt 0:00:00]} Nb6 {[%emt 0:00:00]} 23. Qxc5 {[%emt 0:00:00]} Qxc5 {[%emt 0:00:00]} 24. Rxc5 {[%emt 0:00:00]} Rxc5 {[%emt 0:00:00]} 25. Bxc5 {[%emt 0:00:00]} Nfd7 {[%emt 0:00:00]} 26. Bxb6 {[%emt 0:00:00]} Nxb6 {[%emt 0:00:00]} 27. Rc1 {[%emt 0:00:00]} Rc8 {[%emt 0:00:00]} 28. Rxc8+ {[%emt 0:00:00]} Bxc8 {[%emt 0:00:00]} 29. Nd4 {[%emt 0:00:00]} Bd7 {[%emt 0:00:00]} 30. Kf2 {[%emt 0:00:00]} Kf8 {[%emt 0:00:00]} 31. Nc6 {[%emt 0:00:00]} Ke8 {[%emt 0:00:00]} 32. Ke3 {[%emt 0:00:00]} Bxc6 {[%emt 0:00:00]} 33. bxc6 {[%emt 0:00:00]} e5 {[%emt 0:00:00]} 34. Bb5 {[%emt 0:00:00]} Kd8 {[%emt 0:00:00]} 35. Kd3 {[%emt 0:00:00]} Kc7 {[%emt 0:00:00]} 36. Kc3 {[%emt 0:00:00]} g6 {[%emt 0:00:00]} 37. Kb4 {[%emt 0:00:00]} f5 {[%emt 0:00:00]} 38. Kc5 {[%emt 0:00:00]} f4 {[%emt 0:00:00]} 39. h4 {[%emt 0:00:00]} g5 {[%emt 0:00:00]} 40. hxg5 {[%emt 0:00:00]} hxg5 {[%emt 0:00:00]} 41. Ba6 {[%emt 0:00:00]} Na8 {[%emt 0:00:00]} 42. Kd5 {[%emt 0:00:00]} 1-0

[Event "Austrian Championship Boys-U12 2024"]
[Site "Fuerstenfeld"]
[Date "2024.06.02"]
[Round "7.5"]
[White "Atlas, Daniel"]
[Black "Rella, Mario"]
[Result "0-1"]
[ECO "B13"]
[WhiteElo "1629"]
[BlackElo "1582"]
[Annotator "NA RC"]
[PlyCount "118"]
[EventDate "2024.05.28"]
[EventType "swiss"]
[EventCountry "AUT"]
[SourceTitle "playchess.com"]
[Source "ChessBase"]
[SourceQuality "1"]
[TimeControl "5400+30"]

1. e4 {[%emt 0:00:03]} d5 {[%emt 0:00:18]} 2. exd5 {[%emt 0:00:22]} c6 {[%emt 0:00:21]} 3. Nc3 {[%emt 0:01:12]} cxd5 {[%emt 0:01:38]} 4. d4 {[%emt 0:00:19]} Bf5 {[%emt 0:01:05]} 5. Bb5+ {[%emt 0:01:23]} Nc6 {[%emt 0:01:09]} 6. Nf3 {[%emt 0:02:39]} a6 {[%emt 0:00:55]} 7. Ba4 {[%emt 0:03:22]} b5 {[%emt 0:00:58]} 8. Bb3 {[%emt 0:00:12]} e6 {[%emt 0:00:21]} 9. O-O {[%emt 0:03:38]} h6 {[%emt 0:02:23]} 10. Re1 {[%emt 0:01:19]} Be7 {[%emt 0:01:04]} 11. Bf4 {[%emt 0:04:28]} Nf6 {[%emt 0:01:53]} 12. Ne2 {[%emt 0:04:14]} O-O {[%emt 0:02:28]} 13. c3 {[%emt 0:00:40]} Be4 {[%emt 0:02:42]} 14. Ng3 {[%emt 0:01:04]} Bg6 {[%emt 0:01:34]} 15. Qd2 {[%emt 0:03:41]} b4 {[%emt 0:01:35]} 16. Rac1 {[%emt 0:04:01]} bxc3 {[%emt 0:00:40]} 17. Qxc3 {[%emt 0:01:30]} Nb4 {[%emt 0:01:27]} 18. Ne5 {[%emt 0:01:25]} Ne4 {[%emt 0:03:22]} 19. Qe3 {[%emt 0:04:01]} Bh7 {[%emt 0:04:31]} 20. a3 {[%emt 0:03:50]} f6 {[%emt 0:02:15]} 21. Ng4 {[%emt 0:03:54]} Nxg3 {[%emt 0:00:59]} 22. Qxe6+ {[%emt 0:03:39]} Rf7 {[%emt 0:00:40]} 23. axb4 {[%emt 0:04:28]} Bf5 {[%emt 0:01:17]} 24. Bc7 {[%emt 0:04:34]} Bxe6 {[%emt 0:03:52]} 25. Bxd8 {[%emt 0:00:25]} Bxg4 {[%emt 0:00:11]} 26. Bxe7 {[%emt 0:00:58]} Ne2+ {[%emt 0:00:20]} 27. Rxe2 {[%emt 0:00:40]} Bxe2 {[%emt 0:00:18]} 28. Bxd5 {[%emt 0:00:14]} Re8 {[%emt 0:00:50]} 29. Bxf7+ {[%emt 0:00:58]} Kxf7 {[%emt 0:00:07]} 30. Bc5 {[%emt 0:00:25]} Bc4 {[%emt 0:00:12]} 31. f3 {[%emt 0:00:32]} Bd5 {[%emt 0:00:33]} 32. Kf2 {[%emt 0:00:40]} Rc8 {[%emt 0:02:27]} 33. Ra1 {[%emt 0:01:29]} Bc4 {[%emt 0:00:39]} 34. Re1 {[%emt 0:00:43]} Re8 {[%emt 0:00:55]} 35. Rxe8 {[%emt 0:00:50]} Kxe8 {[%emt 0:00:06]} 36. Ke3 {[%emt 0:00:12]} f5 {[%emt 0:00:22]} 37. Kf4 {[%emt 0:00:19]} g6 {[%emt 0:00:29]} 38. Ke5 {[%emt 0:00:42]} Kf7 {[%emt 0:00:22]} 39. d5 {[%emt 0:00:59]} Bb5 {[%emt 0:00:41]} 40. Kd6 {[%emt 0:00:57]} g5 {[%emt 0:00:43]} 41. Kc7 {[%emt 0:03:32]} h5 {[%emt 0:00:26]} 42. d6 {[%emt 0:00:48]} Ke6 {[%emt 0:00:15]} 43. h3 {[%emt 0:01:31]} g4 {[%emt 0:01:55]} 44. Bf2 {[%emt 0:01:24]} gxh3 {[%emt 0:00:24]} 45. gxh3 {[%emt 0:00:13]} Ba4 {[%emt 0:00:18]} 46. b3 {[%emt 0:02:54]} Bb5 {[%emt 0:00:08]} 47. Bg3 {[%emt 0:00:13]} Bd7 {[%emt 0:00:15]} 48. Kb6 {[%emt 0:00:53]} Bb5 {[%emt 0:00:15]} 49. Kc5 {[%emt 0:00:06]} Be2 {[%emt 0:03:59]} 50. b5 {[%emt 0:00:29]} Bxb5 {[%emt 0:01:01]} 51. Kd4 {[%emt 0:00:08]} Be2 {[%emt 0:04:33]} 52. Ke3 {[%emt 0:00:16]} Bf1 {[%emt 0:00:07]} 53. Kf4 {[%emt 0:00:24]} Bxh3 {[%emt 0:01:20]} 54. Kg5 {[%emt 0:01:54]} Bg2 {[%emt 0:00:20]} 55. Kxh5 {[%emt 0:00:26]} Bxf3+ {[%emt 0:00:06]} 56. Kg5 {[%emt 0:00:25]} Bd5 {[%emt 0:00:34]} 57. b4 {[%emt 0:00:20]} Be4 {[%emt 0:00:38]} 58. Kg6 {[%emt 0:00:34]} f4+ {[%emt 0:00:14]} 59. Kg7 {[%emt 0:00:47]} fxg3 {[%emt 0:00:06]} 0-1

[Event "Austrian Championship Boys-U12 2024"]
[Site "Fuerstenfeld"]
[Date "2024.06.02"]
[Round "7.6"]
[White "Perfler, Daniel"]
[Black "Keller, Niklas"]
[Result "1/2-1/2"]
[ECO "B15"]
[WhiteElo "1623"]
[BlackElo "1710"]
[Annotator "NA RC"]
[PlyCount "60"]
[EventDate "2024.05.28"]
[EventType "swiss"]
[EventCountry "AUT"]
[SourceTitle "playchess.com"]
[Source "ChessBase"]
[SourceQuality "1"]
[TimeControl "5400+30"]

1. e4 {[%emt 0:00:03]} c6 {[%emt 0:00:08]} 2. d4 {[%emt 0:00:04]} d5 {[%emt 0:00:08]} 3. Nc3 {[%emt 0:00:05]} dxe4 {[%emt 0:00:27]} 4. Nxe4 {[%emt 0:00:06]} Nf6 {[%emt 0:00:07]} 5. Nxf6+ {[%emt 0:00:10]} exf6 {[%emt 0:00:10]} 6. c3 {[%emt 0:00:45]} Bd6 {[%emt 0:00:14]} 7. Bd3 {[%emt 0:00:50]} O-O {[%emt 0:00:34]} 8. Qc2 {[%emt 0:01:16]} h6 {[%emt 0:00:44]} 9. Ne2 {[%emt 0:04:41]} Qc7 {[%emt 0:01:57]} 10. h3 {[%emt 0:06:22]} Be6 {[%emt 0:00:49]} 11. Be3 {[%emt 0:03:52]} Nd7 {[%emt 0:01:29]} 12. Qd2 {[%emt 0:07:52]} Rfe8 {[%emt 0:15:10]} 13. Bxh6 {[%emt 0:10:24]} gxh6 {[%emt 0:01:23]} 14. Qxh6 {[%emt 0:01:27]} f5 {[%emt 0:01:20]} 15. g4 {[%emt 0:02:37]} Bf8 {[%emt 0:03:10]} 16. Qg5+ {[%emt 0:00:56]} Bg7 {[%emt 0:00:12]} 17. gxf5 {[%emt 0:00:39]} f6 {[%emt 0:00:36]} 18. Qg4 {[%emt 0:02:01]} Bd5 {[%emt 0:02:16]} 19. Rg1 {[%emt 0:01:03]} Nb6 {[%emt 0:00:48]} 20. h4 {[%emt 0:02:09]} Qf7 {[%emt 0:01:48]} 21. O-O-O {[%emt 0:05:19]} Kf8 {[%emt 0:05:40]} 22. Kc2 {[%emt 0:03:21]} Bxa2 {[%emt 0:01:54]} 23. Nf4 {[%emt 0:02:20]} Bb3+ {[%emt 0:02:34]} 24. Kb1 {[%emt 0:01:02]} Bxd1 {[%emt 0:02:02]} 25. Rxd1 {[%emt 0:03:21]} Na4 {[%emt 0:07:20]} 26. Rg1 {[%emt 0:00:55]} Nxc3+ {[%emt 0:03:33]} 27. bxc3 {[%emt 0:00:44]} Qb3+ {[%emt 0:00:22]} 28. Kc1 {[%emt 0:03:35]} Qxc3+ {[%emt 0:01:26]} 29. Kd1 {[%emt 0:01:01]} Qa1+ {[%emt 0:02:42]} 30. Kc2 {[%emt 0:01:01]} Qa2+ {[%emt 0:44:27]} 1/2-1/2